[Event "Nové Hrady - Rapid A"]
[Site "Nové Hrady, Czech Republic"]
[Date "2024.08.10"]
[Round "3.1"]
[White "Hák, David"]
[Black "Garabik, Marek"]
[Result "1-0"]
[TimeControl "2x15min+5s"]
[WhiteFideId "377007"]
[BlackFideId "23717742"]
[WhiteElo "2192"]
[BlackElo "1933"]

1. c4 {[%clk 00:15:08]} {[%emt 00:00:02]} e6 {[%clk 00:15:09]} {[%emt
00:00:02]} 2. g3 {[%clk 00:15:11]} {[%emt 00:00:02]} d5 {[%clk 00:15:09]}
{[%emt 00:00:05]} 3. Bg2 {[%clk 00:15:14]} Nf6 {[%clk 00:15:12]} {[%emt
00:00:03]} 4. Nf3 {[%clk 00:15:14]} {[%emt 00:00:05]} Be7 {[%clk 00:15:14]}
{[%emt 00:00:04]} 5. O-O {[%clk 00:15:11]} {[%emt 00:00:07]} O-O {[%clk
00:15:17]} {[%emt 00:00:02]} 6. b3 {[%clk 00:15:06]} {[%emt 00:00:10]} c6
{[%clk 00:14:34]} {[%emt 00:00:48]} 7. Bb2 {[%clk 00:15:09]} {[%emt 00:00:02]}
Nbd7 {[%clk 00:14:37]} 8. d3 {[%clk 00:15:07]} {[%emt 00:00:09]} b6 {[%clk
00:14:40]} {[%emt 00:00:02]} 9. Nbd2 {[%clk 00:15:11]} {[%emt 00:00:01]} Bb7
{[%clk 00:14:44]} 10. Rc1 {[%clk 00:15:15]} Rc8 {[%clk 00:14:48]} {[%emt
00:00:04]} 11. Rc2 {[%clk 00:15:13]} {[%emt 00:00:07]} c5 {[%clk 00:14:22]}
{[%emt 00:00:30]} 12. Ne5 {[%clk 00:14:45]} {[%emt 00:00:33]} Nxe5 {[%clk
00:13:59]} {[%emt 00:00:29]} 13. Bxe5 {[%clk 00:14:49]} Nd7 {[%clk 00:14:02]}
{[%emt 00:00:02]} 14. Bb2 {[%clk 00:14:33]} {[%emt 00:00:20]} Bf6 {[%clk
00:14:04]} {[%emt 00:00:03]} 15. Qa1 {[%clk 00:14:18]} {[%emt 00:00:19]} Bxb2
{[%clk 00:13:59]} {[%emt 00:00:10]} 16. Qxb2 {[%clk 00:14:22]} Qf6 {[%clk
00:14:03]} 17. Qa3 {[%clk 00:12:54]} {[%emt 00:01:35]} a5 {[%clk 00:12:19]}
{[%emt 00:01:50]} 18. Qb2 {[%clk 00:11:12]} {[%emt 00:01:47]} Qxb2 {[%clk
00:12:22]} {[%emt 00:00:02]} 19. Rxb2 {[%clk 00:11:16]} Ba8 {[%clk 00:12:00]}
{[%emt 00:00:28]} 20. a3 {[%clk 00:10:34]} {[%emt 00:00:47]} dxc4 {[%clk
00:09:27]} {[%emt 00:02:38]} 21. bxc4 {[%clk 00:10:23]} {[%emt 00:00:16]} Bxg2
{[%clk 00:09:19]} {[%emt 00:00:13]} 22. Kxg2 {[%clk 00:10:26]} {[%emt
00:00:03]} Rb8 {[%clk 00:09:17]} {[%emt 00:00:06]} 23. Rfb1 {[%clk 00:10:25]}
{[%emt 00:00:05]} Rfc8 {[%emt 00:00:46]} 24. h4 {[%clk 00:08:46]} {[%emt
00:01:13]} f6 {[%clk 00:08:59]} {[%emt 00:00:14]} 25. h5 {[%clk 00:07:45]}
{[%emt 00:01:06]} Kf7 {[%clk 00:08:58]} {[%emt 00:00:07]} 26. f4 {[%clk
00:07:21]} {[%emt 00:00:28]} g6 {[%clk 00:08:17]} {[%emt 00:00:46]} 27. Ne4
{[%clk 00:07:13]} {[%emt 00:00:13]} Rc6 {[%clk 00:06:34]} {[%emt 00:01:48]} 28.
Rh1 {[%clk 00:07:17]} Kg7 {[%clk 00:04:57]} {[%emt 00:01:43]} 29. Rbb1 {[%clk
00:06:54]} {[%emt 00:00:27]} f5 {[%clk 00:04:35]} {[%emt 00:00:27]} 30. Ng5
{[%clk 00:05:18]} {[%emt 00:01:40]} h6 {[%clk 00:02:41]} {[%emt 00:02:00]} 31.
Nf3 {[%clk 00:05:12]} {[%emt 00:00:10]} gxh5 {[%clk 00:01:37]} {[%emt
00:01:10]} 32. Rxh5 {[%clk 00:05:15]} {[%emt 00:00:01]} Nf6 {[%clk 00:01:41]}
33. Ne5 {[%clk 00:05:19]} Rcc8 {[%clk 00:01:23]} {[%emt 00:00:26]} 34. Rh4
{[%clk 00:05:16]} {[%emt 00:00:08]} a4 {[%clk 00:00:32]} {[%emt 00:00:56]} 35.
Rb5 {[%clk 00:04:29]} {[%emt 00:00:53]} Ne8 {[%clk 00:00:08]} {[%emt 00:00:29]}
36. Rb1 {[%clk 00:01:56]} {[%emt 00:02:37]} Nd6 {[%clk 00:00:08]} {[%emt
00:00:05]} 37. Rbh1 {[%clk 00:01:41]} {[%emt 00:00:20]} Rh8 {[%clk 00:00:12]}
38. g4 {[%clk 00:01:45]} b5 {[%clk 00:00:09]} {[%emt 00:00:10]} 39. Nd7 {[%clk
00:01:48]} {[%emt 00:00:02]} Rbc8 {[%clk 00:00:08]} {[%emt 00:00:06]} 40. cxb5
{[%clk 00:01:07]} {[%emt 00:00:45]} Nxb5 {[%clk 00:00:12]} {[%emt 00:00:01]} 41.
Rb1 {[%clk 00:01:12]} Rc7 {[%emt 00:00:12]} 42. Rxb5 {[%clk 00:00:57]} {[%emt
00:00:21]} Rxd7 {[%clk 00:00:19]} 43. Rxc5 {[%clk 00:01:00]} {[%emt 00:00:04]}
fxg4 {[%clk 00:00:19]} {[%emt 00:00:04]} 44. Rxg4+ {[%clk 00:01:03]} {[%emt
00:00:02]} Kf6 {[%clk 00:00:20]} {[%emt 00:00:04]} 45. Kf3 {[%clk 00:00:55]}
{[%emt 00:00:13]} Rb7 {[%clk 00:00:08]} {[%emt 00:00:17]} 46. Ra5 {[%clk
00:00:55]} {[%emt 00:00:05]} h5 {[%clk 00:00:08]} {[%emt 00:00:05]} 47. Rh4
{[%clk 00:00:58]} Rb3 {[%clk 00:00:11]} {[%emt 00:00:04]} 48. Rxa4 {[%clk
00:00:57]} {[%emt 00:00:06]} e5 {[%clk 00:00:08]} {[%emt 00:00:08]} 49. Ra6+
{[%clk 00:01:01]} Kf5 {[%clk 00:00:11]} {[%emt 00:00:02]} 50. Ra5 {[%clk
00:01:05]} Kf6 {[%clk 00:00:07]} {[%emt 00:00:10]} 51. Rxe5 {[%clk 00:01:00]}
{[%emt 00:00:09]} Rxa3 {[%clk 00:00:11]} 52. Rhxh5 {[%clk 00:01:03]} {[%emt
00:00:04]} Rg8 {[%clk 00:00:06]} {[%emt 00:00:10]} 53. Rhf5+ {[%clk 00:00:59]}
{[%emt 00:00:08]} Kg7 {[%clk 00:00:11]} 54. Rg5+ {[%clk 00:00:40]} {[%emt
00:00:26]} Kh7 {[%clk 00:00:11]} {[%emt 00:00:04]} 55. Re7+ {[%clk 00:00:42]}
{[%emt 00:00:04]} Kh8 {[%clk 00:00:08]} {[%emt 00:00:07]} 56. Rh5# {[%clk
00:00:45]} {[%emt 00:00:02]} 1-0

[Event "Nové Hrady - Rapid A"]
[Site "Nové Hrady, Czech Republic"]
[Date "2024.08.10"]
[Round "3.2"]
[White "Borecký, Andrej"]
[Black "Steinbauer, Sebastián"]
[Result "0-1"]
[TimeControl "2x15min+5s"]
[WhiteFideId "23752670"]
[BlackFideId "399272"]
[WhiteElo "1618"]
[BlackElo "2018"]

1. e4 {[%clk 00:15:05]} {[%emt 00:00:04]} e5 {[%clk 00:15:09]} 2. Nf3 {[%clk
00:15:08]} {[%emt 00:00:03]} Nf6 {[%clk 00:15:13]} 3. Nxe5 {[%clk 00:14:58]}
{[%emt 00:00:16]} Nc6 {[%clk 00:15:11]} {[%emt 00:00:07]} 4. Nf3 {[%clk
00:14:04]} {[%emt 00:01:00]} Nxe4 {[%clk 00:15:13]} {[%emt 00:00:02]} 5. Nc3
{[%clk 00:13:59]} {[%emt 00:00:10]} d5 {[%clk 00:15:06]} {[%emt 00:00:13]} 6.
Bb5 {[%clk 00:13:36]} {[%emt 00:00:27]} Be7 {[%clk 00:13:34]} {[%emt 00:01:38]}
7. O-O {[%clk 00:12:37]} {[%emt 00:01:04]} O-O {[%clk 00:13:27]} {[%emt
00:00:11]} 8. Re1 {[%clk 00:12:10]} {[%emt 00:00:32]} Bf5 {[%clk 00:12:25]}
{[%emt 00:01:07]} 9. d3 {[%clk 00:09:15]} {[%emt 00:03:01]} Nxc3 {[%clk
00:12:23]} {[%emt 00:00:06]} 10. bxc3 {[%clk 00:09:18]} {[%emt 00:00:02]} Bf6
{[%clk 00:12:15]} {[%emt 00:00:13]} 11. Bb2 {[%clk 00:08:09]} {[%emt 00:01:15]}
Qd6 {[%clk 00:12:01]} {[%emt 00:00:19]} 12. Bxc6 {[%clk 00:07:01]} {[%emt
00:01:13]} bxc6 {[%clk 00:11:34]} {[%emt 00:00:31]} 13. Nd4 {[%clk 00:06:38]}
{[%emt 00:00:29]} Bd7 {[%clk 00:11:33]} {[%emt 00:00:05]} 14. a4 {[%clk
00:06:08]} {[%emt 00:00:35]} c5 {[%clk 00:11:37]} {[%emt 00:00:02]} 15. Nb5
{[%clk 00:05:14]} {[%emt 00:00:59]} Qc6 {[%clk 00:11:14]} {[%emt 00:00:28]} 16.
d4 {[%clk 00:03:42]} {[%emt 00:01:36]} a6 {[%clk 00:10:54]} {[%emt 00:00:26]}
17. Na3 {[%clk 00:03:45]} {[%emt 00:00:02]} c4 {[%clk 00:10:50]} {[%emt
00:00:09]} 18. Nb1 {[%clk 00:03:15]} {[%emt 00:00:34]} Rfe8 {[%clk 00:10:47]}
{[%emt 00:00:09]} 19. Nd2 {[%clk 00:02:36]} {[%emt 00:00:45]} Rab8 {[%clk
00:10:36]} {[%emt 00:00:15]} 20. Ba3 {[%clk 00:02:31]} {[%emt 00:00:10]} Qxa4
{[%clk 00:09:52]} {[%emt 00:00:49]} 21. Be7 {[%clk 00:01:26]} {[%emt 00:01:10]}
Qc6 {[%clk 00:09:51]} {[%emt 00:00:05]} 22. Bxf6 {[%clk 00:01:24]} {[%emt
00:00:07]} Qxf6 {[%clk 00:09:52]} {[%emt 00:00:04]} 23. Nf3 {[%clk 00:01:19]}
{[%emt 00:00:10]} Bg4 {[%clk 00:09:53]} {[%emt 00:00:05]} 24. h3 {[%clk
00:00:36]} {[%emt 00:00:48]} Bxf3 {[%clk 00:09:53]} {[%emt 00:00:04]} 25. Qxf3
{[%clk 00:00:39]} {[%emt 00:00:02]} Rxe1+ {[%clk 00:09:50]} {[%emt 00:00:08]}
26. Rxe1 {[%clk 00:00:39]} {[%emt 00:00:05]} Qxf3 {[%clk 00:09:54]} 27. gxf3
{[%clk 00:00:42]} {[%emt 00:00:03]} Kf8 {[%clk 00:09:58]} {[%emt 00:00:02]} 28.
Ra1 {[%clk 00:00:39]} {[%emt 00:00:08]} Rb6 {[%clk 00:09:59]} {[%emt 00:00:03]}
29. Ra5 {[%clk 00:00:31]} {[%emt 00:00:14]} c6 {[%clk 00:10:02]} {[%emt
00:00:02]} 30. Kg2 {[%clk 00:00:32]} {[%emt 00:00:03]} Ke7 {[%clk 00:10:01]}
{[%emt 00:00:06]} 31. Kg3 {[%clk 00:00:36]} Kd7 {[%clk 00:10:06]} 32. Kf4
{[%clk 00:00:37]} {[%emt 00:00:06]} Kc7 {[%clk 00:07:42]} {[%emt 00:02:29]} 33.
Ra1 {[%clk 00:00:27]} {[%emt 00:00:15]} Kb7 {[%clk 00:07:45]} {[%emt 00:00:03]}
34. Re1 {[%clk 00:00:14]} {[%emt 00:00:16]} Ka7 {[%clk 00:07:49]} 35. Ke5
{[%clk 00:00:11]} {[%emt 00:00:10]} a5 {[%clk 00:07:27]} {[%emt 00:00:27]} 36.
Kd6 {[%clk 00:00:09]} {[%emt 00:00:06]} Ka6 {[%clk 00:07:27]} {[%emt 00:00:06]}
37. Re8 {[%clk 00:00:12]} {[%emt 00:00:02]} a4 {[%clk 00:05:17]} {[%emt
00:02:15]} 38. Kc5 {[%clk 00:00:09]} {[%emt 00:00:08]} Ka7 {[%clk 00:05:12]}
{[%emt 00:00:09]} 39. Re7+ {[%clk 00:00:09]} {[%emt 00:00:04]} Rb7 {[%clk
00:05:16]} 40. Re1 {[%clk 00:00:09]} {[%emt 00:00:08]} Rb2 {[%clk 00:05:09]}
{[%emt 00:00:12]} 41. Kxc6 {[%clk 00:00:08]} {[%emt 00:00:06]} Rxc2 {[%clk
00:05:11]} {[%emt 00:00:03]} 42. Kxd5 {[%clk 00:00:08]} {[%emt 00:00:05]} Rxc3
{[%clk 00:05:14]} 43. Ra1 {[%clk 00:00:12]} a3 {[%clk 00:05:18]} 44. Kc5 {[%clk
00:00:10]} {[%emt 00:00:10]} Kb7 {[%clk 00:05:22]} 45. Kb4 {[%clk 00:00:09]}
{[%emt 00:00:07]} Rxf3 {[%clk 00:05:24]} {[%emt 00:00:03]} 46. Kxc4 {[%clk
00:00:11]} {[%emt 00:00:04]} Rxh3 {[%clk 00:05:27]} {[%emt 00:00:02]} 47. Re1
{[%clk 00:00:07]} {[%emt 00:00:09]} Kc6 {[%clk 00:05:18]} {[%emt 00:00:14]} 48.
Re8 {[%clk 00:00:07]} {[%emt 00:00:05]} Rf3 {[%clk 00:05:17]} {[%emt 00:00:06]}
49. Ra8 {[%clk 00:00:10]} {[%emt 00:00:02]} g6 {[%clk 00:05:01]} {[%emt
00:00:21]} 50. Ra6+ {[%clk 00:00:13]} {[%emt 00:00:02]} Kb7 {[%clk 00:04:59]}
{[%emt 00:00:07]} 51. Ra5 {[%clk 00:00:12]} {[%emt 00:00:06]} h5 {[%clk
00:05:03]} 52. d5 {[%clk 00:00:12]} {[%emt 00:00:05]} Kc7 {[%clk 00:04:19]}
{[%emt 00:00:48]} 53. Kc5 {[%clk 00:00:09]} {[%emt 00:00:08]} Rc3+ {[%clk
00:04:23]} 54. Kd4 {[%clk 00:00:13]} Rf3 {[%clk 00:03:22]} {[%emt 00:01:08]} 55.
Kc5 {[%clk 00:00:16]} {[%emt 00:00:02]} h4 {[%clk 00:02:33]} {[%emt 00:00:55]}
56. Ra7+ {[%clk 00:00:06]} {[%emt 00:00:15]} Kb8 {[%clk 00:02:36]} {[%emt
00:00:07]} 57. Ra4 {[%clk 00:00:07]} {[%emt 00:00:01]} h3 {[%clk 00:02:36]}
{[%emt 00:00:02]} 58. d6 {[%clk 00:00:09]} {[%emt 00:00:03]} h2 {[%clk
00:02:07]} {[%emt 00:00:34]} 59. d7 {[%clk 00:00:08]} {[%emt 00:00:07]} Rd3
{[%clk 00:02:11]} 60. Rd4 {[%clk 00:00:06]} {[%emt 00:00:08]} Rxd4 {[%clk
00:02:14]} {[%emt 00:00:02]} 61. Kxd4 {[%clk 00:00:10]} Kc7 {[%clk 00:02:18]}
0-1

[Event "Nové Hrady - Rapid A"]
[Site "Nové Hrady, Czech Republic"]
[Date "2024.08.10"]
[Round "3.3"]
[White "Prinz, Hubert"]
[Black "Rendl, Luboš"]
[Result "1-0"]
[TimeControl "2x15min+5s"]
[WhiteFideId "1639447"]
[BlackFideId "23750197"]
[WhiteElo "1986"]
[BlackElo "1848"]

1. d4 {[%clk 00:15:09]} {[%emt 00:00:36]} Nf6 {[%clk 00:15:01]} {[%emt
00:00:09]} 2. Nf3 {[%clk 00:15:12]} {[%emt 00:00:02]} g6 {[%clk 00:15:03]}
{[%emt 00:00:03]} 3. e3 {[%clk 00:15:16]} Bg7 {[%clk 00:15:00]} {[%emt
00:00:07]} 4. Bd3 {[%emt 00:00:19]} O-O {[%clk 00:14:29]} {[%emt 00:00:20]} 5.
O-O {[%clk 00:15:20]} {[%emt 00:00:05]} d6 {[%clk 00:14:30]} {[%emt 00:00:04]}
6. Nbd2 {[%clk 00:15:09]} {[%emt 00:00:16]} Nbd7 {[%clk 00:14:11]} {[%emt
00:00:25]} 7. b3 {[%clk 00:15:06]} {[%emt 00:00:08]} e5 {[%clk 00:13:48]}
{[%emt 00:00:28]} 8. Bb2 {[%clk 00:14:59]} {[%emt 00:00:11]} Qe7 {[%clk
00:12:48]} {[%emt 00:01:06]} 9. dxe5 {[%clk 00:14:33]} {[%emt 00:00:30]} dxe5
{[%clk 00:12:46]} {[%emt 00:00:07]} 10. e4 {[%clk 00:13:55]} {[%emt 00:00:43]}
Rd8 {[%clk 00:11:28]} {[%emt 00:01:23]} 11. Qe2 {[%clk 00:13:50]} {[%emt
00:00:09]} Nh5 {[%clk 00:10:35]} {[%emt 00:01:00]} 12. g3 {[%clk 00:13:36]}
{[%emt 00:00:18]} Nc5 {[%clk 00:10:12]} {[%emt 00:00:28]} 13. Ba3 {[%clk
00:13:07]} {[%emt 00:00:34]} Bh3 {[%clk 00:05:06]} {[%emt 00:05:11]} 14. Rfe1
{[%clk 00:11:33]} {[%emt 00:01:39]} Nf6 {[%clk 00:04:46]} {[%emt 00:00:25]} 15.
Qe3 {[%clk 00:11:01]} {[%emt 00:00:37]} b6 {[%clk 00:03:29]} {[%emt 00:01:23]}
16. Bxc5 {[%clk 00:10:30]} {[%emt 00:00:36]} bxc5 {[%clk 00:03:11]} {[%emt
00:00:23]} 17. Bc4 {[%clk 00:10:27]} {[%emt 00:00:07]} Ng4 {[%clk 00:02:38]}
{[%emt 00:00:38]} 18. Qe2 {[%clk 00:09:10]} {[%emt 00:01:22]} Rd6 {[%clk
00:02:02]} {[%emt 00:00:42]} 19. Nf1 {[%clk 00:09:00]} {[%emt 00:00:15]} Bxf1
{[%clk 00:01:25]} {[%emt 00:00:42]} 20. Rxf1 {[%clk 00:08:20]} {[%emt
00:00:44]} Rad8 {[%clk 00:01:20]} {[%emt 00:00:10]} 21. Rad1 {[%clk 00:08:13]}
{[%emt 00:00:13]} Nf6 {[%clk 00:01:04]} {[%emt 00:00:21]} 22. Ng5 {[%clk
00:07:06]} {[%emt 00:01:11]} Kf8 {[%clk 00:00:17]} {[%emt 00:00:52]} 23. Nxf7
{[%clk 00:06:42]} {[%emt 00:00:29]} Rxd1 {[%clk 00:00:17]} {[%emt 00:00:05]} 24.
Rxd1 {[%clk 00:06:46]} Rxd1+ {[%clk 00:00:18]} {[%emt 00:00:05]} 25. Qxd1
{[%clk 00:06:50]} Nxe4 {[%clk 00:00:18]} {[%emt 00:00:06]} 26. Qf3 {[%clk
00:06:01]} {[%emt 00:00:54]} Nf6 {[%clk 00:00:14]} {[%emt 00:00:09]} 27. Qa8+
{[%clk 00:05:47]} {[%emt 00:00:19]} Ne8 {[%clk 00:00:12]} {[%emt 00:00:07]} 28.
Qxa7 {[%clk 00:05:23]} {[%emt 00:00:29]} Bf6 {[%clk 00:00:07]} {[%emt
00:00:10]} 29. Qa8 {[%clk 00:04:54]} {[%emt 00:00:34]} 1-0

[Event "Nové Hrady - Rapid A"]
[Site "Nové Hrady, Czech Republic"]
[Date "2024.08.10"]
[Round "3.4"]
[White "Dudarec, Elias"]
[Black "Valiyev, Adil"]
[Result "1-0"]
[TimeControl "2x15min+5s"]
[WhiteFideId "23714930"]
[BlackFideId "23752246"]
[WhiteElo "1588"]
[BlackElo "1469"]

1. e4 {[%clk 00:15:08]} {[%emt 00:00:02]} e5 {[%clk 00:15:09]} {[%emt
00:00:02]} 2. d4 {[%clk 00:15:10]} {[%emt 00:00:02]} d6 {[%clk 00:14:40]}
{[%emt 00:00:34]} 3. dxe5 {[%clk 00:14:13]} {[%emt 00:01:02]} dxe5 {[%clk
00:14:35]} {[%emt 00:00:10]} 4. Qxd8+ {[%clk 00:14:11]} {[%emt 00:00:07]} Kxd8
{[%clk 00:14:38]} {[%emt 00:00:02]} 5. Nf3 {[%clk 00:14:14]} {[%emt 00:00:02]}
Nc6 {[%clk 00:14:42]} {[%emt 00:00:01]} 6. Be3 {[%clk 00:14:08]} {[%emt
00:00:12]} Nf6 {[%clk 00:14:44]} {[%emt 00:00:03]} 7. Nc3 {[%clk 00:14:10]}
{[%emt 00:00:02]} Bb4 {[%emt 00:00:07]} 8. O-O-O+ {[%clk 00:14:08]} {[%emt
00:00:04]} Ke7 {[%clk 00:14:29]} {[%emt 00:00:21]} 9. Nd5+ {[%clk 00:13:51]}
{[%emt 00:00:22]} Nxd5 {[%clk 00:14:07]} {[%emt 00:00:26]} 10. exd5 {[%clk
00:13:49]} {[%emt 00:00:08]} e4 {[%clk 00:14:07]} {[%emt 00:00:04]} 11. Nd2
{[%clk 00:12:58]} {[%emt 00:00:56]} Ne5 {[%clk 00:13:51]} {[%emt 00:00:21]} 12.
Nxe4 {[%clk 00:12:53]} {[%emt 00:00:10]} Bg4 {[%clk 00:12:42]} {[%emt
00:01:12]} 13. f3 {[%clk 00:12:19]} {[%emt 00:00:42]} Nxf3 {[%clk 00:11:41]}
{[%emt 00:01:07]} 14. gxf3 {[%clk 00:12:22]} {[%emt 00:00:02]} Bxf3 {[%clk
00:11:43]} {[%emt 00:00:03]} 15. Bd3 {[%clk 00:12:25]} {[%emt 00:00:02]} Bxh1
{[%clk 00:11:42]} {[%emt 00:00:05]} 16. Rxh1 {[%clk 00:12:28]} Rad8 {[%clk
00:10:22]} {[%emt 00:01:27]} 17. a3 {[%clk 00:12:26]} {[%emt 00:00:08]} Ba5
{[%clk 00:09:55]} {[%emt 00:00:30]} 18. Bc5+ {[%clk 00:12:26]} {[%emt
00:00:07]} Ke8 {[%clk 00:08:01]} {[%emt 00:01:57]} 19. b4 {[%clk 00:12:28]}
{[%emt 00:00:05]} Bb6 {[%clk 00:08:00]} {[%emt 00:00:05]} 20. Nf6+ {[%clk
00:12:28]} {[%emt 00:00:06]} gxf6 {[%clk 00:07:39]} {[%emt 00:00:25]} 21. Re1+
{[%clk 00:12:32]} Kd7 {[%clk 00:07:40]} {[%emt 00:00:06]} 22. Bf5# {[%clk
00:12:35]} 1-0

[Event "Nové Hrady - Rapid A"]
[Site "Nové Hrady, Czech Republic"]
[Date "2024.08.10"]
[Round "3.6"]
[White "Vondruška, Leoš"]
[Black "Šebesta, Marek"]
[Result "0-1"]
[TimeControl "2x15min+5s"]
[WhiteFideId "23730099"]
[BlackFideId "23765119"]
[WhiteElo "1506"]
[BlackElo "1707"]

1. e4 {[%clk 00:15:09]} {[%emt 00:00:02]} e5 {[%clk 00:15:09]} 2. Nf3 {[%clk
00:15:12]} {[%emt 00:00:02]} Nc6 {[%clk 00:15:13]} 3. Bc4 {[%clk 00:15:15]}
{[%emt 00:00:03]} Nf6 {[%clk 00:15:17]} 4. d3 {[%clk 00:15:15]} {[%emt
00:00:07]} h6 {[%clk 00:15:21]} 5. O-O {[%clk 00:15:13]} {[%emt 00:00:06]} Bc5
{[%clk 00:15:22]} {[%emt 00:00:04]} 6. h3 {[%clk 00:15:08]} {[%emt 00:00:10]}
d5 {[%clk 00:15:11]} {[%emt 00:00:17]} 7. exd5 {[%clk 00:14:51]} {[%emt
00:00:19]} Nxd5 {[%clk 00:15:15]} 8. Re1 {[%clk 00:14:40]} {[%emt 00:00:19]}
O-O {[%clk 00:14:20]} {[%emt 00:01:01]} 9. Nxe5 {[%clk 00:14:08]} {[%emt
00:00:36]} Re8 {[%clk 00:13:25]} {[%emt 00:01:00]} 10. Nxc6 {[%clk 00:13:20]}
{[%emt 00:00:53]} bxc6 {[%emt 00:00:33]} 11. Nd2 {[%clk 00:11:11]} {[%emt
00:02:12]} Be6 {[%clk 00:12:34]} {[%emt 00:00:30]} 12. Ne4 {[%clk 00:10:53]}
{[%emt 00:00:23]} Bb6 {[%clk 00:12:07]} {[%emt 00:00:32]} 13. Bd2 {[%clk
00:10:09]} {[%emt 00:00:49]} f5 {[%clk 00:11:15]} {[%emt 00:00:57]} 14. Ng3
{[%clk 00:09:39]} {[%emt 00:00:35]} Qf6 {[%clk 00:10:39]} {[%emt 00:00:41]} 15.
Bxd5 {[%clk 00:08:33]} {[%emt 00:01:11]} cxd5 {[%clk 00:10:33]} {[%emt
00:00:11]} 16. Bc3 {[%clk 00:08:33]} {[%emt 00:00:04]} d4 {[%clk 00:10:12]}
{[%emt 00:00:27]} 17. Bd2 {[%clk 00:08:06]} {[%emt 00:00:32]} Bd5 {[%clk
00:09:12]} {[%emt 00:01:05]} 18. Qh5 {[%clk 00:07:21]} {[%emt 00:00:50]} Rf8
{[%clk 00:07:19]} {[%emt 00:01:57]} 19. Bb4 {[%clk 00:05:16]} {[%emt 00:02:11]}
c5 {[%clk 00:06:39]} {[%emt 00:00:45]} 20. Ba3 {[%clk 00:05:11]} {[%emt
00:00:11]} a5 {[%clk 00:05:48]} {[%emt 00:00:56]} 21. Nf1 {[%clk 00:05:12]}
{[%emt 00:00:04]} Qc6 {[%clk 00:04:26]} {[%emt 00:01:26]} 22. f3 {[%clk
00:03:40]} {[%emt 00:01:37]} Rf6 {[%clk 00:03:26]} {[%emt 00:01:04]} 23. Qh4
{[%clk 00:03:34]} {[%emt 00:00:12]} Rg6 {[%clk 00:02:43]} {[%emt 00:00:49]} 24.
Qf2 {[%clk 00:03:24]} {[%emt 00:00:15]} Bxf3 {[%clk 00:02:39]} {[%emt
00:00:08]} 25. g3 {[%clk 00:03:05]} {[%emt 00:00:24]} f4 {[%clk 00:02:09]}
{[%emt 00:00:35]} 26. g4 {[%clk 00:02:56]} {[%emt 00:00:14]} h5 {[%clk
00:01:48]} {[%emt 00:00:26]} 27. Nh2 {[%clk 00:02:55]} {[%emt 00:00:06]} hxg4
{[%clk 00:01:34]} {[%emt 00:00:19]} 28. Nxf3 {[%clk 00:02:36]} {[%emt
00:00:24]} gxf3+ {[%clk 00:01:15]} {[%emt 00:00:24]} 29. Kh1 {[%clk 00:02:05]}
{[%emt 00:00:22]} Rg3 {[%clk 00:01:15]} {[%emt 00:00:19]} 30. Re4 {[%clk
00:00:59]} {[%emt 00:01:11]} Rxh3+ {[%clk 00:01:14]} {[%emt 00:00:07]} 31. Kg1
{[%clk 00:00:57]} {[%emt 00:00:06]} Qg6+ {[%clk 00:01:18]} 32. Kf1 {[%clk
00:00:54]} {[%emt 00:00:09]} Rh1+ {[%clk 00:01:21]} 33. Qg1 {[%clk 00:00:44]}
{[%emt 00:00:16]} Qxg1# {[%clk 00:01:25]} 0-1